bitfinex/quotes_SOLUSD_20250621
["timestamp","ask_amount","ask_price","bid_price","bid_amount"]
[1750468094805,17.54,140.13,140.12,45.57317498]
[1750468096214,16.8,140.13,140.12,46.30317498]
[1750468096706,16.8,140.16,140.13,0.73]
[1750468096883,16.8,140.16,140.15,35.79871206]
[1750468098219,16.8,140.16,140.15,42.93392433]
[1750468100321,17.54,140.16,140.15,42.93392433]
[1750468101914,16.8,140.16,140.15,42.93392433]
[1750468102414,17.54,140.16,140.15,42.93392433]
[1750468102711,17.54,140.16,140.15,33.13521227]
[1750468103016,0.74,140.15,140.14,7.13560881]
[1750468104027,0.74,140.14,140.13,7.13605343]
[1750468108690,0.74,140.13,140.12,33.13661376]
[1750468108917,15.13308251,140.13,140.12,33.13661376]
[1750468109123,0.74,140.13,140.12,33.13661376]
[1750468112420,0.72,140.14,140.12,42.93532582]
[1750468113632,1.5943,140.16,140.14,26.0]
[1750468113847,19.36964886,140.17,140.15,26.0]
[1750468115414,18.64964886,140.17,140.16,7.13470319]
[1750468115618,19.36964886,140.17,140.16,7.13470319]
[1750468116115,24.70436362,140.17,140.16,7.13470319]
[1750468116906,5.33471476,140.17,140.16,7.13470319]
[1750468117101,146.42,140.18,140.16,7.13470319]
[1750468117637,5.33466211,140.17,140.16,7.13470319]
[1750468118344,5.33452339,140.17,140.16,7.13470319]
[1750468118537,146.42,140.18,140.16,7.13470319]
[1750468119522,146.42,140.18,140.16,16.93341525]
[1750468119720,145.7,140.18,140.16,16.93341525]
[1750468120222,145.7,140.18,140.16,23.07341525]
[1750468121127,146.42,140.18,140.16,23.07341525]
[1750468121627,145.7,140.18,140.16,13.27470319]
[1750468121854,0.72,140.17,140.16,13.27470319]
[1750468124949,6.05460932,140.17,140.16,13.27470319]
[1750468127530,0.72,140.17,140.16,13.27470319]
[1750468134455,37.1695596,140.17,140.16,6.14]
[1750468134925,33.64608134,140.17,140.16,6.14]
[1750468136058,18.64964886,140.16,140.15,7.13500795]
[1750468136243,19.36964886,140.15,140.14,7.13553917]
[1750468136444,30.97884527,140.15,140.14,7.13553917]
[1750468136662,30.97884527,140.15,140.13,7.13623064]
[1750468136835,28.45605799,140.15,140.13,7.13623064]
[1750468137036,0.72,140.14,140.13,7.13623064]
[1750468140262,5.33469365,140.14,140.13,7.13623064]
[1750468140632,28.45605799,140.15,140.13,7.13623064]
[1750468140856,29.17605799,140.15,140.13,7.13623064]
[1750468142062,16.8,140.14,140.13,7.13623064]
[1750468142358,22.88329363,140.14,140.13,7.13623064]
[1750468145360,17.55,140.14,140.13,7.13623064]
[1750468145748,16.8,140.14,140.13,16.94263977]
[1750468146062,16.8,140.14,140.13,17.64263977]
[1750468147744,16.8,140.14,140.13,7.13623064]
[1750468148055,16.8,140.14,140.13,16.94263977]
[1750468160474,16.8,140.14,140.13,13.41018843]
[1750468162157,16.8,140.14,140.13,40.11018843]
[1750468162363,16.8,140.16,140.15,26.7]
[1750468162565,16.8,140.16,140.15,32.97395779]
[1750468162768,19.39964886,140.16,140.13,24.97680724]
[1750468163073,0.75,140.15,140.14,26.0]
[1750468163453,0.75,140.15,140.13,24.97680724]
[1750468163861,0.75,140.15,140.13,50.97680724]
[1750468168672,16.8,140.14,140.13,50.97680724]
[1750468168872,17.55,140.14,140.13,50.97680724]
[1750468169677,16.8,140.14,140.13,50.97680724]
[1750468169979,16.8,140.14,140.13,57.25076503]
[1750468170180,16.8,140.14,140.13,57.95076503]
[1750468170369,16.8,140.14,140.13,50.97680724]
[1750468175880,16.8,140.14,140.13,57.25076503]
[1750468176362,16.8,140.14,140.13,50.97680724]
[1750468176670,16.8,140.14,140.13,57.25076503]
[1750468182194,16.8,140.14,140.13,58.00076503]
[1750468188795,16.8,140.14,140.13,32.00076503]
[1750468189170,16.8,140.16,140.15,26.75]
[1750468189469,16.8,140.16,140.15,33.02395779]
[1750468190386,16.8,140.16,140.15,40.15917006]
[1750468195492,16.3,140.16,140.15,40.15917006]
[1750468197705,16.3,140.16,140.15,33.88521227]
[1750468197888,16.3,140.16,140.15,39.40917006]
[1750468201326,15.8,140.16,140.15,39.40917006]
[1750468213535,15.8,140.16,140.15,40.14917006]
[1750468214111,15.8,140.16,140.15,39.40917006]
[1750468219509,15.8,140.16,140.15,40.14917006]
[1750468220914,15.0,140.18,140.15,57.98720074]
[1750468221120,15.0,140.18,140.17,32.27395779]
[1750468221754,15.0,140.18,140.17,39.40815198]
[1750468225844,15.0,140.18,140.17,33.13419419]
[1750468226142,15.0,140.18,140.17,39.40815198]
[1750468229018,15.0,140.18,140.17,45.48815198]
[1750468242160,15.0,140.18,140.17,20.18815198]
[1750468248371,15.7,140.21,140.2,26.0]
[1750468248676,15.7,140.21,140.2,32.27395779]
[1750468249372,15.7,140.21,140.2,39.4066254]
[1750468257566,15.0,140.21,140.2,39.4066254]
[1750468262570,15.0,140.21,140.2,40.1066254]
[1750468263862,15.0,140.21,140.2,39.8366254]
[1750468266972,15.0,140.21,140.2,39.1366254]
[1750468274065,15.75,140.21,140.2,39.1366254]
[1750468274261,15.0,140.21,140.2,39.8366254]
[1750468274579,15.0,140.21,140.2,64.93245656]
[1750468274767,15.0,140.21,140.2,39.8366254]
[1750468275178,15.0,140.21,140.2,64.93245656]
[1750468275367,15.0,140.21,140.2,70.59390698]
[1750468278187,15.75,140.24,140.2,88.42557602]
[1750468278373,15.0,140.23,140.21,25.09583116]
[1750468278561,15.0,140.23,140.22,6.27395779]
[1750468279787,15.0,140.23,140.22,13.40560805]
[1750468283097,31.85369447,140.23,140.18,6.27395779]
[1750468283294,0.75,140.19,140.17,37.32259556]
[1750468283484,0.75,140.19,140.17,57.04863777]
[1750468283676,0.75,140.19,140.17,63.32259556]
[1750468284196,0.75,140.19,140.17,39.21419419]
[1750468285793,0.75,140.19,140.17,45.48815198]
[1750468287074,16.0,140.18,140.17,45.48815198]
[1750468287275,16.75,140.18,140.17,45.48815198]
[1750468292572,16.0,140.18,140.17,45.48815198]
[1750468295897,16.0,140.18,140.17,39.21419419]
[1750468296197,16.0,140.18,140.17,45.48815198]
[1750468296993,16.73,140.18,140.17,45.48815198]
[1750468299997,16.73,140.18,140.17,39.21419419]
[1750468300594,16.73,140.18,140.17,33.13419419]
[1750468303397,35.37964886,140.18,140.17,7.13419419]
[1750468304001,19.37964886,140.18,140.17,7.13419419]
[1750468314788,19.37964886,140.18,140.11,35.68421083]
[1750468314789,0.73,140.16,140.13,6.08]
[1750468315502,6.27395779,140.16,140.13,6.08]
[1750468315709,0.73,140.15,140.13,6.08]
[1750468316388,0.73,140.15,140.14,7.13572142]
[1750468319903,7.00395779,140.16,140.14,7.13572142]
[1750468320297,6.27395779,140.16,140.14,7.13572142]
[1750468320498,0.73,140.15,140.14,7.13572142]
[1750468322711,24.92360665,140.17,140.14,7.13572142]
[1750468322712,19.37964886,140.17,140.14,7.13572142]
[1750468322915,18.64964886,140.19,140.16,7.01395779]
[1750468323212,18.64964886,140.19,140.17,33.01395779]
[1750468324417,18.64964886,140.19,140.18,7.13368526]
[1750468326118,19.37964886,140.19,140.18,7.13368526]
[1750468326923,24.68906062,140.19,140.18,7.13368526]
[1750468329930,24.69677889,140.19,140.18,7.13368526]
[1750468331828,23.96677889,140.19,140.18,7.13368526]
[1750468332697,18.64964886,140.19,140.18,7.13368526]
[1750468332925,23.96854707,140.19,140.18,7.13368526]
[1750468333623,154.36225779,140.22,140.18,14.14764305]
[1750468333828,24.69994178,140.21,140.18,14.14764305]
[1750468334031,5.32029292,140.2,140.18,14.14764305]
[1750468334198,19.37964886,140.21,140.18,14.14764305]
[1750468334402,5.32016874,140.2,140.18,14.14764305]
[1750468334620,19.37964886,140.21,140.18,14.14764305]
[1750468334799,5.32094526,140.2,140.18,14.14764305]
[1750468335133,19.37964886,140.21,140.18,14.14764305]
[1750468335299,5.32090836,140.2,140.18,13.40764305]
[1750468335503,0.73,140.2,140.18,7.13368526]
[1750468335698,30.97415387,140.19,140.18,7.13368526]
[1750468335928,24.70019608,140.19,140.18,7.13368526]
[1750468336708,18.64964886,140.18,140.17,33.13396897]
[1750468337030,24.70019608,140.18,140.17,33.13396897]
[1750468337216,19.37964886,140.18,140.17,33.13396897]
[1750468337411,24.7004681,140.18,140.17,33.13396897]
[1750468341909,23.97669217,140.18,140.17,33.13396897]
[1750468344725,18.64964886,140.18,140.17,33.13396897]
[1750468345021,23.97804322,140.18,140.17,33.13396897]
[1750468347040,23.97804322,140.18,140.17,33.87396897]
[1750468347419,18.64964886,140.2,140.17,61.50911354]
[1750468347632,5.3295631,140.19,140.18,10.53965909]
[1750468348313,18.64964886,140.2,140.18,10.53965909]
[1750468348534,5.32902128,140.19,140.18,10.53965909]
[1750468348938,18.64964886,140.2,140.18,7.87368526]
[1750468349117,5.32887622,140.19,140.18,17.67334435]
[1750468349315,18.64964886,140.2,140.18,17.67334435]
[1750468350520,16.0,140.19,140.18,24.96789841]
[1750468350719,16.0,140.19,140.18,35.5075575]
[1750468357146,16.0,140.19,140.18,25.70789841]
[1750468357346,16.0,140.19,140.18,35.5075575]
[1750468357733,16.0,140.22,140.21,26.0]
[1750468357930,19.33964886,140.23,140.21,35.79965909]
[1750468358326,18.64964886,140.23,140.22,7.13165026]
[1750468358531,23.97255017,140.23,140.22,7.13165026]
[1750468358727,18.64964886,140.23,140.22,7.13165026]
[1750468359834,19.33964886,140.23,140.22,7.13165026]
[1750468361956,0.69,140.22,140.18,17.83414557]
[1750468362247,6.26701796,140.22,140.19,32.06]
[1750468362450,0.69,140.22,140.19,38.32701796]
[1750468363573,18.64964886,140.21,140.19,45.46019436]
[1750468363927,19.33964886,140.21,140.19,45.46019436]
[1750468365156,31.91006974,140.24,140.2,6.26701796]
[1750468365469,18.64964886,140.22,140.2,6.26701796]
[1750468366558,19.33964886,140.22,140.21,7.1321589]
[1750468366755,24.66200898,140.22,140.21,7.1321589]
[1750468369751,24.66302211,140.22,140.21,7.1321589]
[1750468375375,24.66377635,140.22,140.21,7.1321589]
[1750468378166,24.6632799,140.22,140.21,7.1321589]
[1750468380172,23.9732799,140.22,140.21,7.1321589]
[1750468380467,18.64964886,140.22,140.21,7.1321589]
[1750468381175,25.64305178,140.24,140.21,24.96255616]
[1750468381466,5.32308991,140.23,140.22,6.26701796]
[1750468381673,16.69,140.22,140.21,24.96255616]
[1750468382442,40.66262593,140.22,140.21,7.1321589]
[1750468383257,18.64964886,140.21,140.2,7.13266761]
[1750468383456,24.69320674,140.21,140.2,7.13266761]
[1750468383656,19.36964886,140.21,140.2,7.13266761]
[1750468383853,24.69321842,140.21,140.2,7.13266761]
[1750468384745,19.36964886,140.21,140.2,7.13266761]
[1750468384942,24.69390581,140.21,140.2,7.13266761]
[1750468385375,24.69620174,140.21,140.2,7.13266761]
[1750468386276,24.69627643,140.21,140.2,7.13266761]
[1750468386865,19.36964886,140.2,140.19,39.19294581]
[1750468387049,0.72,140.18,140.16,56.16362396]
[1750468387255,0.72,140.18,140.17,7.13419419]
[1750468389972,19.36964886,140.19,140.17,7.13419419]
[1750468390350,18.64964886,140.19,140.17,13.40121215]
[1750468390552,18.64964886,140.19,140.17,14.10121215]
[1750468394583,0.72,140.2,140.17,14.10121215]
[1750468395956,24.91666682,140.21,140.17,13.40121215]
[1750468396277,0.72,140.2,140.17,13.40121215]
[1750468397783,18.64964886,140.19,140.17,13.40121215]
[1750468398370,18.64964886,140.19,140.17,14.10121215]
[1750468398623,25.63666682,140.21,140.17,13.40121215]
[1750468398779,25.63666682,140.21,140.18,0.7]
[1750468399081,18.64964886,140.19,140.17,14.10121215]
[1750468405378,16.0,140.19,140.18,6.96701796]
[1750468408092,16.0,140.19,140.18,14.10070322]
[1750468409488,16.0,140.19,140.18,39.40070322]
[1750468409686,16.0,140.21,140.2,26.7]
[1750468409863,21.32944045,140.21,140.2,32.96701796]
[1750468410291,16.0,140.21,140.2,40.09968557]
[1750468415097,16.0,140.21,140.2,46.15968557]
[1750468423807,16.0,140.21,140.2,45.45968557]
[1750468424505,16.0,140.21,140.2,33.13266761]
[1750468424685,16.69,140.21,140.2,33.13266761]
[1750468425700,16.0,140.21,140.2,39.39968557]
[1750468426103,21.32471466,140.21,140.2,39.39968557]
[1750468426600,21.32471466,140.21,140.2,33.13266761]
[1750468426811,16.69,140.21,140.2,33.13266761]
[1750468427105,22.01431248,140.21,140.2,33.13266761]
[1750468428001,16.69,140.21,140.2,33.13266761]
[1750468428396,22.01478164,140.21,140.2,33.13266761]
[1750468429092,22.01452496,140.21,140.2,33.13266761]
[1750468429905,22.01477788,140.21,140.2,33.13266761]
[1750468430110,16.69,140.21,140.2,33.13266761]
[1750468431096,22.01454692,140.21,140.2,33.13266761]
[1750468432924,22.01454692,140.21,140.2,39.39968557]
[1750468433593,16.69,140.21,140.2,39.39968557]
[1750468433809,21.32228645,140.21,140.2,39.39968557]
[1750468434117,16.0,140.21,140.2,40.09968557]
[1750468435015,16.0,140.21,140.2,33.13266761]
[1750468435215,16.0,140.21,140.2,39.39968557]
[1750468435713,21.32222201,140.21,140.2,39.39968557]
[1750468435918,16.0,140.21,140.2,40.09968557]
[1750468436801,16.0,140.24,140.2,57.93135461]
[1750468437097,5.32122326,140.23,140.22,6.26701796]
[1750468438722,5.32122326,140.23,140.22,13.39866822]
[1750468440899,16.0,140.24,140.22,13.39866822]
[1750468441100,16.69,140.24,140.22,13.39866822]
[1750468442035,5.32230857,140.23,140.22,13.39866822]
[1750468446226,16.0,140.24,140.22,14.09866822]
[1750468446408,16.0,140.24,140.23,6.26701796]
[1750468447702,16.69,140.24,140.23,13.39815965]
[1750468451532,16.0,140.24,140.23,13.39815965]
[1750468453017,16.69,140.24,140.23,13.39815965]
[1750468457617,16.0,140.24,140.23,13.39815965]
[1750468459634,16.0,140.24,140.23,7.13114169]
[1750468459838,16.0,140.24,140.23,13.39815965]
[1750468460130,16.69,140.24,140.23,13.39815965]
[1750468460936,16.0,140.24,140.23,13.39815965]
[1750468465342,16.0,140.24,140.23,40.09815965]
[1750468465714,16.0,140.24,140.23,39.39815965]
[1750468465715,16.69,140.24,140.23,39.39815965]
[1750468467341,16.69,140.24,140.23,33.13114169]
[1750468467522,35.33964886,140.24,140.23,7.13114169]
[1750468467731,40.65476113,140.24,140.23,7.13114169]
[1750468470039,45.97008107,140.24,140.23,7.13114169]
[1750468470226,35.33964886,140.24,140.23,7.13114169]
[1750468471145,35.33964886,140.24,140.23,6.26701796]
[1750468471323,16.0,140.24,140.23,6.26701796]
[1750468471829,16.0,140.24,140.23,7.00701796]
[1750468473342,18.64964886,140.26,140.23,31.22601388]
[1750468473521,18.64964886,140.26,140.24,6.26701796]
[1750468474223,19.34964886,140.26,140.24,6.26701796]
[1750468475941,19.34964886,140.26,140.25,7.13012477]
[1750468476624,19.34964886,140.26,140.25,13.39714273]
[1750468477846,24.66826982,140.26,140.25,7.13012477]
[1750468478935,24.67042107,140.26,140.25,7.13012477]
[1750468479427,40.67042107,140.26,140.25,7.13012477]
[1750468479822,40.67042107,140.26,140.24,7.1306332]
[1750468480022,34.64964886,140.26,140.24,7.1306332]
[1750468480223,0.7,140.25,140.24,7.1306332]
[1750468480423,6.0232469,140.25,140.24,7.1306332]
[1750468481174,24.67289576,140.25,140.24,7.1306332]
[1750468483824,18.64964886,140.24,140.23,7.1309376]
[1750468484025,23.97289576,140.24,140.23,7.1309376]
[1750468484244,24.67289576,140.24,140.23,7.1309376]
[1750468484748,24.67363217,140.24,140.23,7.1309376]
[1750468485945,19.34964886,140.24,140.23,7.1309376]
[1750468486137,24.6734982,140.24,140.23,7.1309376]
[1750468488356,24.67322294,140.24,140.23,7.1309376]
[1750468489352,5.32357408,140.24,140.23,13.39795556]
[1750468489554,34.64964886,140.25,140.23,14.13795556]
[1750468489752,34.64964886,140.25,140.24,6.26701796]
[1750468489958,39.97379368,140.25,140.24,6.26701796]
[1750468490560,39.97388021,140.25,140.23,14.13795556]
[1750468490857,34.64964886,140.25,140.23,14.13795556]
[1750468492453,34.64964886,140.25,140.23,13.39795556]
[1750468492661,35.34964886,140.25,140.23,13.39795556]
[1750468498340,34.64964886,140.25,140.23,14.13795556]
[1750468498950,34.64964886,140.25,140.24,6.26701796]
[1750468499262,39.97497515,140.25,140.24,6.26701796]
[1750468499457,21.32532629,140.25,140.24,6.26701796]
[1750468499663,16.0,140.25,140.24,6.26701796]
[1750468500442,16.0,140.25,140.24,13.39765116]
[1750468500838,16.0,140.25,140.24,14.13765116]
[1750468502649,16.0,140.25,140.24,40.13765116]
[1750468502873,18.64964886,140.27,140.24,57.96423416]
[1750468503057,18.64964886,140.27,140.26,6.26701796]
[1750468503255,23.97689107,140.27,140.26,6.26701796]
[1750468503770,23.97689107,140.27,140.25,0.68]
[1750468503961,19.32964886,140.27,140.24,51.6372162]
[1750468504270,19.32964886,140.27,140.25,6.26701796]
[1750468505171,19.32964886,140.27,140.26,7.12961642]
[1750468505348,24.65607559,140.27,140.26,7.12961642]
[1750468507167,24.65677701,140.27,140.26,7.12961642]
[1750468508171,19.32964886,140.26,140.25,7.13012477]
[1750468508468,24.65609522,140.26,140.25,7.13012477]
[1750468509376,19.32964886,140.26,140.25,7.13012477]
[1750468509668,18.64964886,140.26,140.25,7.13012477]
[1750468513786,23.97834614,140.26,140.25,7.13012477]
[1750468513957,24.65834614,140.26,140.25,7.13012477]
[1750468515985,24.6586426,140.26,140.25,7.13012477]
[1750468520689,40.6586426,140.26,140.25,7.13012477]
[1750468521488,35.32964886,140.26,140.25,7.13012477]
[1750468521694,40.66072703,140.26,140.25,7.13012477]
[1750468526286,19.32964886,140.25,140.24,39.17040173]
[1750468526499,24.66072703,140.25,140.24,39.17040173]
[1750468526679,24.66072703,140.25,140.22,26.0]
[1750468526680,0.68,140.23,140.22,26.0]
[1750468527605,0.68,140.23,140.22,33.13165026]
[1750468527973,19.32964886,140.23,140.22,7.13165026]
[1750468528280,18.64964886,140.22,140.19,7.1331764]
[1750468528483,24.66222214,140.21,140.19,19.44019436]
[1750468528690,19.32964886,140.21,140.2,26.0]
[1750468528878,19.32964886,140.2,140.19,7.1331764]
[1750468529282,0.68,140.19,140.16,6.26701796]
[1750468529588,6.01158061,140.18,140.17,13.17419419]
[1750468530771,35.32964886,140.2,140.17,19.44121215]
[1750468531092,18.64964886,140.19,140.18,6.26701796]
[1750468531675,16.68,140.2,140.18,6.26701796]
[1750468531676,35.32964886,140.2,140.18,13.40070322]
[1750468532675,19.32964886,140.2,140.18,13.40070322]
[1750468533380,19.38964886,140.19,140.18,7.13368526]
[1750468534009,18.64964886,140.19,140.18,13.40070322]
[1750468534798,19.38964886,140.19,140.18,13.40070322]
[1750468538204,18.64964886,140.19,140.18,13.40070322]
[1750468539381,18.64964886,140.19,140.18,7.13368526]
[1750468539580,18.64964886,140.19,140.18,13.40070322]
[1750468539782,19.38964886,140.19,140.18,7.13368526]
[1750468539991,19.38964886,140.19,140.18,13.40070322]
[1750468540780,19.38964886,140.19,140.18,7.13368526]
[1750468545503,18.64964886,140.19,140.18,13.40070322]
[1750468546903,19.38964886,140.19,140.18,13.40070322]
[1750468548482,18.64964886,140.19,140.18,13.40070322]
[1750468549175,19.38964886,140.19,140.18,13.40070322]
[1750468550300,18.64964886,140.19,140.18,13.40070322]
[1750468551582,18.64964886,140.19,140.18,7.13368526]
[1750468551782,18.64964886,140.19,140.18,13.40070322]
[1750468552307,18.64964886,140.19,140.18,7.13368526]
[1750468552608,19.38964886,140.19,140.18,7.13368526]
[1750468554088,18.64964886,140.19,140.18,7.13368526]
[1750468556108,19.38964886,140.19,140.18,7.13368526]
[1750468557411,18.2763,140.25,140.18,31.23491637]
[1750468557592,19.38964886,140.23,140.21,6.26701796]
[1750468557791,19.38964886,140.22,140.21,6.26701796]
[1750468558197,18.64964886,140.21,140.2,6.26701796]
[1750468558404,19.38964886,140.21,140.2,6.26701796]
[1750468559313,0.74,140.2,140.18,7.13368526]
[1750468559494,19.38964886,140.2,140.19,13.40019436]
[1750468559901,19.38964886,140.2,140.19,7.1331764]
[1750468560102,19.38964886,140.2,140.19,13.40019436]
[1750468560306,18.64964886,140.2,140.19,13.40019436]
[1750468560509,18.64964886,140.21,140.19,14.08019436]
[1750468560815,18.64964886,140.22,140.2,6.26701796]
[1750468561001,18.64964886,140.22,140.21,6.26701796]
[1750468561490,16.0,140.23,140.21,13.39917686]
[1750468561690,34.64964886,140.23,140.22,6.26701796]
[1750468561886,18.64964886,140.23,140.22,6.26701796]
[1750468562087,18.64964886,140.24,140.22,6.94701796]
[1750468562302,18.64964886,140.24,140.23,6.26701796]
[1750468563309,18.64964886,140.24,140.23,13.39815965]
[1750468565285,0.71,140.23,140.22,6.26701796]
[1750468565611,0.71,140.23,140.22,7.13165026]
[1750468569824,6.03246694,140.23,140.22,7.13165026]
[1750468571406,5.32246694,140.23,140.2,7.13261927]
[1750468571721,19.35964886,140.21,140.2,7.13261927]
[1750468571914,24.6821158,140.21,140.2,7.13261927]
[1750468572517,24.6821158,140.21,140.19,15.83302035]
[1750468572698,0.71,140.18,140.13,0.68]
[1750468572899,8.18205772,140.24,140.17,10.47302035]
[1750468573115,18.64964886,140.22,140.21,16.92517925]
[1750468573306,26.63607262,140.22,140.21,16.92517925]
[1750468575610,26.63544972,140.22,140.21,16.92517925]
[1750468577800,26.63457551,140.22,140.21,16.92517925]
[1750468578425,23.97276075,140.22,140.21,16.92517925]
[1750468578753,26.63431669,140.22,140.21,16.92517925]
[1750468579229,26.63431669,140.22,140.2,16.92568796]
[1750468579406,5.32311189,140.21,140.2,17.60568796]
[1750468581512,5.3251637,140.21,140.2,17.60568796]
[1750468582034,23.97481256,140.21,140.18,0.68]
[1750468582350,5.32517656,140.2,140.17,16.51302035]
[1750468582506,0.71,140.2,140.17,16.51302035]
[1750468583327,0.71,140.2,140.17,15.83302035]
[1750468584134,19.35964886,140.21,140.18,7.13368526]
[1750468584329,5.32513967,140.2,140.18,7.13368526]
[1750468584521,19.35964886,140.21,140.18,7.13368526]
[1750468584721,5.32337415,140.2,140.18,7.13368526]
[1750468584925,19.35964886,140.21,140.18,7.13368526]
[1750468585111,5.32310482,140.2,140.18,16.92670561]
[1750468585436,28.44266921,140.23,140.19,10.47302035]
[1750468585730,18.64964886,140.21,140.19,10.47302035]
[1750468585937,28.44266921,140.23,140.19,10.47302035]
[1750468586122,18.64964886,140.21,140.2,7.13266761]
[1750468586318,23.97302397,140.21,140.2,7.13266761]
[1750468591840,5.32337511,140.21,140.2,16.92568796]
[1750468592039,5.32337511,140.21,140.2,17.67568796]
[1750468592417,6.07337511,140.21,140.2,16.92568796]
[1750468592913,6.07699833,140.21,140.2,16.92568796]
[1750468593243,5.32699833,140.21,140.2,16.92568796]
[1750468593836,34.64964886,140.23,140.2,35.507357]
[1750468594140,5.32723982,140.22,140.21,10.54302035]
[1750468594851,18.64964886,140.23,140.21,10.54302035]
[1750468595061,18.64964886,140.23,140.22,7.13165026]
[1750468595344,23.97721491,140.23,140.22,7.13165026]
[1750468595551,18.64964886,140.23,140.22,16.92467061]
[1750468595716,23.97662587,140.23,140.22,16.92467061]
[1750468596339,23.97662587,140.23,140.22,7.13165026]
[1750468596725,24.72662587,140.23,140.22,7.13165026]
[1750468596927,27.38990612,140.23,140.22,7.13165026]
[1750468597444,22.06292911,140.23,140.22,7.13165026]
[1750468597752,24.72662044,140.23,140.22,7.13165026]
[1750468598852,24.72755823,140.23,140.22,7.13165026]
[1750468601148,24.72755823,140.23,140.21,6.26788023]
[1750468601323,5.32790937,140.22,140.21,6.26788023]
[1750468601744,5.32908873,140.22,140.21,6.26788023]
[1750468603152,5.32908873,140.22,140.21,13.40003913]
[1750468605658,18.64964886,140.23,140.21,14.15003913]
[1750468605839,18.64964886,140.23,140.22,13.39953049]
[1750468606158,23.97991729,140.23,140.22,13.39953049]
[1750468610555,18.64964886,140.23,140.22,13.39953049]
[1750468610758,23.98385275,140.23,140.22,13.39953049]
[1750468611361,5.33420389,140.23,140.22,14.14953049]
[1750468612445,16.0,140.25,140.22,31.97865614]
[1750468612755,5.33502682,140.24,140.23,6.26788023]
[1750468612946,6.08502682,140.24,140.23,6.26788023]
[1750468613843,6.08502682,140.24,140.23,13.39902192]
[1750468616458,6.0833174,140.24,140.23,13.39902192]
[1750468618553,6.0833174,140.24,140.22,31.22865614]
[1750468618738,18.64964886,140.25,140.23,6.26788023]
[1750468618941,5.33269258,140.24,140.23,6.26788023]
[1750468619556,5.33269258,140.24,140.23,13.39902192]
[1750468619776,19.39964886,140.25,140.23,13.39902192]
[1750468620140,5.33171048,140.24,140.23,13.39902192]
[1750468621065,18.64964886,140.25,140.23,13.39902192]
[1750468621273,19.39964886,140.25,140.23,13.39902192]
[1750468622772,5.33057258,140.24,140.23,13.39902192]
[1750468624173,5.33057258,140.24,140.23,14.10902192]
[1750468625158,5.33151474,140.24,140.23,14.10902192]
[1750468625983,5.33151474,140.24,140.23,13.39902192]
[1750468628070,5.33151474,140.24,140.23,14.10902192]
[1750468629651,5.33477865,140.24,140.23,14.10902192]
[1750468629853,18.64964886,140.25,140.23,14.10902192]
[1750468630046,18.64964886,140.25,140.24,13.39851343]
[1750468630245,23.98433635,140.25,140.24,13.39851343]
[1750468630948,18.64964886,140.25,140.24,13.39851343]
[1750468631153,23.98408962,140.25,140.24,13.39851343]
[1750468631948,23.98408962,140.25,140.24,7.1306332]
[1750468632269,23.98408962,140.25,140.24,13.39851343]
[1750468632448,24.67408962,140.25,140.24,13.39851343]
[1750468634284,23.98408962,140.25,140.24,13.39851343]
[1750468634965,23.98636896,140.25,140.24,13.39851343]
[1750468635161,5.3367201,140.25,140.24,13.39851343]
[1750468635372,5.3367201,140.25,140.24,14.10851343]
[1750468635689,5.3367201,140.25,140.24,13.39851343]
[1750468637486,5.33852026,140.25,140.24,13.39851343]
[1750468638177,5.33852026,140.25,140.24,6.26788023]
[1750468639165,5.33852026,140.25,140.24,13.39851343]
[1750468640000,5.33845753,140.25,140.24,13.39851343]
[1750468640284,6.02845753,140.25,140.24,13.39851343]
[1750468641180,5.33845753,140.25,140.24,13.39851343]
[1750468643083,5.3388817,140.25,140.24,13.39851343]
[1750468643568,5.3388817,140.25,140.24,14.10851343]
[1750468643787,5.3388817,140.25,140.24,13.39851343]
[1750468644684,6.0288817,140.25,140.24,13.39851343]
[1750468647687,0.69,140.25,140.24,13.39851343]
[1750468648581,0.69,140.25,140.24,7.1306332]
[1750468648763,0.69,140.25,140.24,13.39851343]
[1750468651592,0.69,140.26,140.24,13.39851343]
[1750468652093,0.69,140.26,140.24,7.1306332]
[1750468652291,0.69,140.26,140.24,13.39851343]
[1750468655392,18.64964886,140.27,140.24,13.39851343]
[1750468655567,0.72,140.26,140.25,6.26788023]
[1750468656298,19.36964886,140.24,140.23,13.17091541]
[1750468658095,22.04139446,140.24,140.23,13.17091541]
[1750468658395,27.38488567,140.24,140.23,13.17091541]
[1750468660881,27.38387847,140.24,140.23,13.17091541]
[1750468662786,27.38362315,140.24,140.23,13.17091541]
[1750468663084,33.65150338,140.24,140.23,6.04]